[Event "80th ARM-ch 2020"]
[Site "Yerevan"]
[Date "2020.01.12"]
[Round "1.1"]
[White "Mikaelyan, Arman"]
[Black "Sargsyan, Shant"]
[Result "1/2-1/2"]
[ECO "B24"]
[WhiteElo "2476"]
[BlackElo "2601"]
[Annotator "ChessBase"]
[PlyCount "91"]
[EventDate "2020.01.12"]
[EventType "tourn"]
[EventCountry "ARM"]
[SourceTitle "playchess.com"]
[Source "ChessBase"]
[SourceQuality "1"]
[TimeControl "40/5400+30:1800+30"]

1. e4 {[%emt 0:00:00]} c5 {[%emt 0:01:20]} 2. Nc3 {[%emt 0:00:18]} Nc6 {[%emt 0:00:35]} 3. Bb5 {[%emt 0:00:10]} Nd4 {[%emt 0:00:38]} 4. Nf3 {[%emt 0:00:13]} a6 {[%emt 0:00:57]} 5. Bd3 {[%emt 0:00:37]} g6 {[%emt 0:02:10]} 6. b4 {[%emt 0:04:24]} cxb4 {[%emt 0:06:12]} 7. Nd5 {[%emt 0:03:31]} Nxf3+ {[%emt 0:01:59]} 8. Qxf3 {[%emt 0:00:04]} Bg7 {[%emt 0:00:39]} 9. Rb1 {[%emt 0:00:05]} Nf6 {[%emt 0:05:15]} 10. Nxf6+ {[%emt 0:06:47]} Bxf6 {[%emt 0:00:49]} 11. Rxb4 {[%emt 0:00:26]} Qa5 {[%emt 0:04:53]} 12. a3 {[%emt 0:06:10]} O-O {[%emt 0:00:17]} 13. O-O {[%emt 0:00:21]} d6 {[%emt 0:01:17]} 14. Bc4 {[%emt 0:08:21]} Qc5 {[%emt 0:04:17]} 15. Bd5 {[%emt 0:04:00]} a5 {[%emt 0:07:26]} 16. Rc4 {[%emt 0:04:11]} Qb6 {[%emt 0:01:29]} 17. d3 {[%emt 0:04:03]} Bg7 {[%emt 0:03:24]} 18. Be3 Qd8 {[%emt 0:01:23]} 19. e5 {[%emt 0:10:24]} e6 {[%emt 0:02:12]} 20. Bxb7 {[%emt 0:00:53]} Bxb7 {[%emt 0:00:08]} 21. Qxb7 {[%emt 0:00:06]} d5 {[%emt 0:00:46]} 22. Rc6 {[%emt 0:10:18]} Bxe5 {[%emt 0:00:42]} 23. d4 {[%emt 0:07:45]} Bg7 {[%emt 0:03:19]} 24. c3 {[%emt 0:01:30]} Rb8 {[%emt 0:06:00]} 25. Qa6 {[%emt 0:01:10]} Rb3 {[%emt 0:02:31]} 26. a4 {[%emt 0:02:51]} Qa8 {[%emt 0:02:52]} 27. Qxa8 {[%emt 0:06:18]} Rxa8 {[%emt 0:00:03]} 28. Ra1 {[%emt 0:00:08]} h5 {[%emt 0:02:26]} 29. g3 {[%emt 0:00:14]} Rb2 {[%emt 0:05:35]} 30. Kg2 {[%emt 0:01:03]} Bf8 {[%emt 0:04:50]} 31. Bf4 {[%emt 0:04:38]} Be7 {[%emt 0:02:38]} 32. h4 {[%emt 0:02:48]} Kf8 {[%emt 0:01:15]} 33. c4 {[%emt 0:03:43]} dxc4 {[%emt 0:03:10]} 34. Rc1 {[%emt 0:01:26]} Rb4 {[%emt 0:16:50]} 35. R1xc4 {[%emt 0:00:20]} Ke8 {[%emt 0:00:28]} 36. Bd2 {[%emt 0:01:42]} Rxc4 {[%emt 0:00:26]} 37. Rxc4 {[%emt 0:00:03]} Kd7 {[%emt 0:00:20]} 38. Kf3 {[%emt 0:01:41]} Bd8 {[%emt 0:01:25]} 39. Ke4 {[%emt 0:04:04]} Ra6 {[%emt 0:02:09]} 40. Rc5 {[%emt 0:00:00]} Bb6 {[%emt 0:00:00]} 41. Rb5 {[%emt 0:01:13]} f6 {[%emt 0:04:38]} 42. Be3 {[%emt 0:07:16]} Bc7 {[%emt 0:08:27]} 43. Bf4 {[%emt 0:01:08]} f5+ {[%emt 0:08:13]} 44. Ke3 {[%emt 0:02:29]} Rb6 {[%emt 0:03:44]} 45. Rxb6 {[%emt 0:11:59]} Bxb6 {[%emt 0:00:08]} 46. Kd3 {[%emt 0:02:05]} 1/2-1/2

[Event "80th ARM-ch 2020"]
[Site "Yerevan"]
[Date "2020.01.12"]
[Round "1.2"]
[White "Martirosyan, Haik M."]
[Black "Gabuzyan, Hovhannes"]
[Result "1-0"]
[ECO "A67"]
[WhiteElo "2613"]
[BlackElo "2585"]
[Annotator "ChessBase"]
[PlyCount "81"]
[EventDate "2020.01.12"]
[EventType "tourn"]
[EventCountry "ARM"]
[SourceTitle "playchess.com"]
[Source "ChessBase"]
[SourceQuality "1"]
[TimeControl "40/5400+30:1800+30"]

1. d4 {[%emt 0:00:00]} Nf6 {[%emt 0:00:00]} 2. c4 {[%emt 0:00:00]} c5 {[%emt 0:00:00]} 3. d5 {[%emt 0:00:00]} e6 {[%emt 0:00:00]} 4. Nc3 {[%emt 0:00:00]} exd5 {[%emt 0:00:00]} 5. cxd5 {[%emt 0:00:00]} d6 {[%emt 0:00:00]} 6. e4 {[%emt 0:01:04]} g6 {[%emt 0:00:00]} 7. f4 {[%emt 0:01:22]} Bg7 {[%emt 0:00:39]} 8. Bb5+ {[%emt 0:00:29]} Nfd7 {[%emt 0:00:03]} 9. Bd3 {[%emt 0:01:09]} Qh4+ {[%emt 0:00:05]} 10. g3 {[%emt 0:00:08]} Qe7 {[%emt 0:00:04]} 11. Nf3 {[%emt 0:01:53]} Nb6 {[%emt 0:02:18]} 12. Kf2 {[%emt 0:02:52]} O-O {[%emt 0:00:52]} 13. h3 {[%emt 0:03:47]} Na6 {[%emt 0:00:04]} 14. g4 {[%emt 0:11:56]} c4 {[%emt 0:01:10]} 15. Bc2 {[%emt 0:01:37]} Nc5 {[%emt 0:02:33]} 16. Re1 {[%emt 0:02:59]} h5 {[%emt 0:01:19]} 17. gxh5 {[%emt 0:05:51]} Bxh3 {[%emt 0:00:39]} 18. h6 {[%emt 0:07:30]} Bxc3 {[%emt 0:08:43]} 19. bxc3 {[%emt 0:00:44]} Bg4 {[%emt 0:00:03]} 20. Qd4 {[%emt 0:01:58]} f6 {[%emt 0:01:29]} 21. Rg1 {[%emt 0:02:23]} Bh5 {[%emt 0:03:53]} 22. f5 {[%emt 0:01:54]} Bxf3 {[%emt 0:02:36]} 23. Kxf3 {[%emt 0:01:42]} g5 {[%emt 0:00:30]} 24. Bxg5 {[%emt 0:00:07]} Kh8 {[%emt 0:01:25]} 25. Bf4 {[%emt 0:02:17]} Nbd7 {[%emt 0:00:20]} 26. Rg7 {[%emt 0:00:30]} Rf7 {[%emt 0:01:03]} 27. Rag1 {[%emt 0:00:49]} Ne5+ {[%emt 0:01:34]} 28. Bxe5 {[%emt 0:09:25]} fxe5 {[%emt 0:00:13]} 29. Qf2 {[%emt 0:00:23]} Nd7 {[%emt 0:01:01]} 30. R1g6 {[%emt 0:01:35]} Nf6 {[%emt 0:00:50]} 31. Qh4 {[%emt 0:00:54]} Raf8 {[%emt 0:00:17]} 32. Qg5 {[%emt 0:00:58]} b5 {[%emt 0:01:23]} 33. Kg2 {[%emt 0:03:02]} a5 {[%emt 0:00:53]} 34. a3 {[%emt 0:00:20]} b4 {[%emt 0:02:46]} 35. cxb4 {[%emt 0:00:18]} axb4 {[%emt 0:00:02]} 36. axb4 {[%emt 0:00:08]} c3 {[%emt 0:00:03]} 37. b5 {[%emt 0:00:34]} Qd8 {[%emt 0:01:24]} 38. b6 {[%emt 0:05:41]} Qxb6 {[%emt 0:02:48]} 39. Rxf6 {[%emt 0:00:32]} Qb5 {[%emt 0:00:07]} 40. Rfxf7 {[%emt 0:00:00]} Qe2+ {[%emt 0:00:00]} 41. Kh3 {[%emt 0:01:28]} 1-0

[Event "80th ARM-ch 2020"]
[Site "Yerevan"]
[Date "2020.01.12"]
[Round "1.3"]
[White "Pashikian, Arman"]
[Black "Hakobyan, Aram"]
[Result "1-0"]
[ECO "D38"]
[WhiteElo "2605"]
[BlackElo "2582"]
[Annotator "ChessBase"]
[PlyCount "73"]
[EventDate "2020.01.12"]
[EventType "tourn"]
[EventCountry "ARM"]
[SourceTitle "playchess.com"]
[Source "ChessBase"]
[SourceQuality "1"]
[TimeControl "40/5400+30:1800+30"]

1. d4 {[%emt 0:00:00]} Nf6 {[%emt 0:00:00]} 2. c4 {[%emt 0:00:00]} e6 {[%emt 0:00:00]} 3. Nf3 {[%emt 0:00:00]} d5 {[%emt 0:00:00]} 4. Nc3 {[%emt 0:00:25]} Bb4 {[%emt 0:00:03]} 5. cxd5 {[%emt 0:03:12]} exd5 {[%emt 0:00:13]} 6. Bg5 {[%emt 0:00:04]} h6 {[%emt 0:00:16]} 7. Bh4 {[%emt 0:00:20]} O-O {[%emt 0:00:28]} 8. e3 {[%emt 0:00:33]} Bf5 {[%emt 0:00:23]} 9. Be2 {[%emt 0:01:56]} Nbd7 {[%emt 0:02:46]} 10. Qb3 {[%emt 0:01:01]} Qe7 {[%emt 0:04:07]} 11. a3 {[%emt 0:02:41]} Bxc3+ {[%emt 0:00:02]} 12. bxc3 {[%emt 0:00:05]} b5 {[%emt 0:00:01]} 13. Bxf6 {[%emt 0:03:44]} Nxf6 {[%emt 0:00:31]} 14. O-O {[%emt 0:00:14]} Rab8 {[%emt 0:19:39]} 15. Ne5 {[%emt 0:07:14]} Qd6 {[%emt 0:05:22]} 16. a4 {[%emt 0:05:52]} b4 {[%emt 0:24:21]} 17. cxb4 {[%emt 0:02:24]} Rxb4 {[%emt 0:00:09]} 18. Qa3 {[%emt 0:01:24]} Rfb8 {[%emt 0:09:52]} 19. Bb5 {[%emt 0:09:20]} Ng4 {[%emt 0:04:44]} 20. f4 {[%emt 0:14:13]} a6 {[%emt 0:24:46]} 21. Nc6 {[%emt 0:04:49]} axb5 {[%emt 0:00:01]} 22. Nxb8 {[%emt 0:00:14]} Rxa4 {[%emt 0:02:44]} 23. Qxd6 {[%emt 0:14:36]} cxd6 {[%emt 0:00:02]} 24. Nc6 {[%emt 0:00:34]} Kh7 {[%emt 0:00:40]} 25. Rxa4 {[%emt 0:03:33]} bxa4 {[%emt 0:00:01]} 26. Re1 {[%emt 0:00:22]} Bc2 {[%emt 0:00:05]} 27. Rc1 {[%emt 0:06:58]} Bb3 {[%emt 0:01:42]} 28. Rc3 {[%emt 0:01:55]} Nf6 {[%emt 0:00:08]} 29. Na5 {[%emt 0:01:25]} Ne4 {[%emt 0:00:01]} 30. Rc7 {[%emt 0:00:10]} Ba2 {[%emt 0:01:20]} 31. Rxf7 {[%emt 0:01:27]} Nd2 {[%emt 0:00:01]} 32. Ra7 {[%emt 0:01:27]} a3 33. Nc6 {[%emt 0:03:26]} Nb1 {[%emt 0:01:10]} 34. f5 {[%emt 0:00:23]} Kg8 {[%emt 0:00:15]} 35. Ne7+ {[%emt 0:01:08]} Kf8 {[%emt 0:00:16]} 36. Ng6+ {[%emt 0:00:11]} Ke8 {[%emt 0:00:08]} 37. Rxg7 {[%emt 0:00:10]} 1-0

[Event "80th ARM-ch 2020"]
[Site "Yerevan"]
[Date "2020.01.12"]
[Round "1.4"]
[White "Ter-Sahakyan, Samvel"]
[Black "Andriasian, Zaven"]
[Result "1-0"]
[ECO "B90"]
[WhiteElo "2617"]
[BlackElo "2611"]
[Annotator "ChessBase"]
[PlyCount "99"]
[EventDate "2020.01.12"]
[EventType "tourn"]
[EventCountry "ARM"]
[SourceTitle "playchess.com"]
[Source "ChessBase"]
[SourceQuality "1"]
[TimeControl "40/5400+30:1800+30"]

1. e4 {[%emt 0:00:00]} c5 {[%emt 0:00:08]} 2. Nf3 {[%emt 0:00:00]} d6 {[%emt 0:00:25]} 3. d4 {[%emt 0:00:00]} cxd4 {[%emt 0:00:53]} 4. Nxd4 {[%emt 0:00:04]} Nf6 {[%emt 0:00:07]} 5. Nc3 {[%emt 0:00:09]} a6 {[%emt 0:00:06]} 6. Be3 {[%emt 0:01:07]} Ng4 {[%emt 0:00:28]} 7. Bc1 {[%emt 0:00:24]} Nf6 {[%emt 0:00:06]} 8. f3 {[%emt 0:00:07]} e5 {[%emt 0:01:36]} 9. Nb3 {[%emt 0:00:07]} Be6 {[%emt 0:00:42]} 10. Be3 {[%emt 0:00:11]} h5 {[%emt 0:00:42]} 11. Qd2 {[%emt 0:06:46]} Nbd7 {[%emt 0:00:34]} 12. O-O-O {[%emt 0:00:07]} Rc8 {[%emt 0:01:28]} 13. Kb1 {[%emt 0:00:58]} Qc7 {[%emt 0:03:21]} 14. g3 {[%emt 0:10:55]} b5 {[%emt 0:01:49]} 15. Nd5 {[%emt 0:05:31]} Bxd5 {[%emt 0:11:27]} 16. exd5 {[%emt 0:00:07]} Nb6 {[%emt 0:04:24]} 17. Bxb6 {[%emt 0:32:05]} Qxb6 {[%emt 0:00:14]} 18. Bh3 {[%emt 0:00:03]} Rc4 {[%emt 0:09:02]} 19. Na5 {[%emt 0:10:36]} Rc5 {[%emt 0:04:07]} 20. b4 {[%emt 0:00:14]} Rc7 {[%emt 0:03:03]} 21. Rhe1 {[%emt 0:00:41]} g6 {[%emt 0:06:53]} 22. f4 {[%emt 0:03:42]} Bh6 {[%emt 0:03:38]} 23. Qd4 {[%emt 0:02:02]} Qxd4 {[%emt 0:03:38]} 24. Rxd4 {[%emt 0:00:04]} e4 {[%emt 0:00:34]} 25. c4 {[%emt 0:11:25]} O-O {[%emt 0:04:02]} 26. c5 {[%emt 0:03:40]} Rd8 {[%emt 0:26:43]} 27. c6 {[%emt 0:02:49]} Re8 {[%emt 0:01:35]} 28. Nb7 {[%emt 0:03:28]} Bf8 {[%emt 0:05:35]} 29. Re2 {[%emt 0:00:14]} Rb8 {[%emt 0:03:07]} 30. Bg2 {[%emt 0:01:18]} Rbxb7 {[%emt 0:00:48]} 31. cxb7 {[%emt 0:00:05]} Rxb7 {[%emt 0:00:05]} 32. Bxe4 {[%emt 0:00:09]} Bg7 {[%emt 0:01:24]} 33. Bf3 {[%emt 0:02:57]} Nd7 {[%emt 0:00:25]} 34. Rde4 {[%emt 0:00:51]} Bf6 {[%emt 0:00:12]} 35. Re8+ {[%emt 0:01:15]} Kg7 {[%emt 0:00:02]} 36. Ra8 {[%emt 0:01:42]} Nb6 {[%emt 0:00:15]} 37. Rxa6 {[%emt 0:00:05]} Na4 {[%emt 0:00:17]} 38. Re3 {[%emt 0:02:00]} Nb6 {[%emt 0:02:23]} 39. Re2 {[%emt 0:00:31]} Na4 {[%emt 0:00:22]} 40. Kc2 {[%emt 0:00:00]} Nb6 {[%emt 0:00:00]} 41. Kd1 {[%emt 0:09:10]} Na4 {[%emt 0:03:10]} 42. Re8 {[%emt 0:06:03]} Rc7 {[%emt 0:00:46]} 43. Rc6 {[%emt 0:02:25]} Ra7 {[%emt 0:00:16]} 44. Kc2 {[%emt 0:04:14]} Nb2 {[%emt 0:00:34]} 45. Be2 {[%emt 0:01:32]} Rxa2 {[%emt 0:00:11]} 46. Kb3 {[%emt 0:00:28]} Ra1 {[%emt 0:00:37]} 47. Rxd6 {[%emt 0:01:26]} Na4 {[%emt 0:00:28]} 48. Bxb5 {[%emt 0:01:02]} Nc3 {[%emt 0:00:23]} 49. Rxf6 {[%emt 0:00:52]} Nxb5 {[%emt 0:00:10]} 50. Rc6 {[%emt 0:00:25]} 1-0

[Event "80th ARM-ch 2020"]
[Site "Yerevan"]
[Date "2020.01.12"]
[Round "1.5"]
[White "Hovhannisyan, Robert"]
[Black "Gharibyan, Mamikon"]
[Result "1/2-1/2"]
[ECO "C88"]
[WhiteElo "2641"]
[BlackElo "2381"]
[Annotator "ChessBase"]
[PlyCount "165"]
[EventDate "2020.01.12"]
[EventType "tourn"]
[EventCountry "ARM"]
[SourceTitle "playchess.com"]
[Source "ChessBase"]
[SourceQuality "1"]
[TimeControl "40/5400+30:1800+30"]

1. e4 {[%emt 0:00:00]} e5 {[%emt 0:00:00]} 2. Nf3 {[%emt 0:00:00]} Nc6 {[%emt 0:00:00]} 3. Bb5 {[%emt 0:00:00]} a6 {[%emt 0:00:02]} 4. Ba4 {[%emt 0:00:14]} Nf6 {[%emt 0:00:08]} 5. O-O {[%emt 0:00:40]} Be7 {[%emt 0:00:19]} 6. Re1 {[%emt 0:00:47]} b5 {[%emt 0:00:11]} 7. Bb3 {[%emt 0:00:07]} d6 {[%emt 0:00:05]} 8. a4 {[%emt 0:00:44]} Bd7 {[%emt 0:01:05]} 9. c3 {[%emt 0:01:15]} O-O {[%emt 0:00:42]} 10. d4 {[%emt 0:00:38]} h6 {[%emt 0:08:44]} 11. Nbd2 {[%emt 0:04:03]} Re8 {[%emt 0:02:16]} 12. Nf1 {[%emt 0:03:44]} Bf8 {[%emt 0:01:30]} 13. Ng3 {[%emt 0:00:55]} Na5 {[%emt 0:02:16]} 14. Bc2 {[%emt 0:04:55]} c5 {[%emt 0:04:39]} 15. h3 {[%emt 0:07:39]} Qc7 {[%emt 0:04:44]} 16. dxe5 {[%emt 0:14:03]} dxe5 {[%emt 0:00:07]} 17. Nh2 {[%emt 0:00:04]} g6 {[%emt 0:09:29]} 18. Qf3 {[%emt 0:00:50]} Qb6 {[%emt 0:07:32]} 19. Rd1 {[%emt 0:03:15]} Qe6 {[%emt 0:01:58]} 20. Ngf1 {[%emt 0:23:52]} Bc6 {[%emt 0:13:18]} 21. Ne3 {[%emt 0:02:47]} Bg7 {[%emt 0:04:19]} 22. Nhg4 {[%emt 0:03:31]} Nxg4 {[%emt 0:07:07]} 23. hxg4 {[%emt 0:00:19]} Nb3 {[%emt 0:02:51]} 24. Bxb3 {[%emt 0:05:02]} Qxb3 {[%emt 0:00:09]} 25. Rd6 {[%emt 0:04:42]} Re6 {[%emt 0:01:34]} 26. Rxc6 {[%emt 0:02:05]} Rxc6 {[%emt 0:00:13]} 27. Ra3 {[%emt 0:00:06]} Qe6 {[%emt 0:00:21]} 28. axb5 {[%emt 0:00:10]} Rcc8 {[%emt 0:05:15]} 29. b6 {[%emt 0:07:44]} Qxb6 {[%emt 0:01:19]} 30. Nd5 {[%emt 0:00:07]} Qe6 {[%emt 0:01:51]} 31. c4 {[%emt 0:00:56]} Rab8 {[%emt 0:02:50]} 32. Qh3 {[%emt 0:01:15]} g5 {[%emt 0:16:33]} 33. Qf3 {[%emt 0:02:42]} Rb7 {[%emt 0:01:00]} 34. Qd1 {[%emt 0:01:11]} Rb4 {[%emt 0:01:47]} 35. Rc3 {[%emt 0:00:49]} a5 {[%emt 0:00:24]} 36. b3 {[%emt 0:03:36]} Rb7 {[%emt 0:00:43]} 37. Rd3 {[%emt 0:00:26]} Rcb8 {[%emt 0:00:25]} 38. Kh2 {[%emt 0:00:44]} Qa6 {[%emt 0:00:37]} 39. Ne3 {[%emt 0:01:13]} Qc6 {[%emt 0:00:32]} 40. Nf5 {[%emt 0:00:00]} Bf8 {[%emt 0:00:00]} 41. f3 {[%emt 0:11:33]} f6 {[%emt 0:08:19]} 42. Be3 {[%emt 0:02:00]} Ra8 {[%emt 0:01:42]} 43. Rd8 {[%emt 0:03:34]} Rxd8 {[%emt 0:01:18]} 44. Qxd8 {[%emt 0:00:05]} Kf7 {[%emt 0:00:47]} 45. Qa8 {[%emt 0:05:08]} Qc7 {[%emt 0:03:23]} 46. Bf2 {[%emt 0:03:21]} Qb6 {[%emt 0:01:26]} 47. Be1 {[%emt 0:01:16]} Qa7 {[%emt 0:02:16]} 48. Qd8 {[%emt 0:03:51]} Rd7 {[%emt 0:00:13]} 49. Qxa5 {[%emt 0:00:39]} Qxa5 {[%emt 0:00:04]} 50. Bxa5 {[%emt 0:00:06]} Rd3 {[%emt 0:00:19]} 51. Kg1 {[%emt 0:01:15]} Rxb3 {[%emt 0:00:06]} 52. Kf1 {[%emt 0:00:24]} Ra3 {[%emt 0:02:19]} 53. Bd2 {[%emt 0:00:27]} Ra4 {[%emt 0:04:04]} 54. Ne3 {[%emt 0:00:04]} Be7 {[%emt 0:01:18]} 55. Ke2 {[%emt 0:00:39]} Bd8 {[%emt 0:00:16]} 56. Nf5 {[%emt 0:00:42]} Kg6 {[%emt 0:04:24]} 57. Kd3 {[%emt 0:00:11]} Ra3+ {[%emt 0:01:53]} 58. Kc2 {[%emt 0:01:08]} Ra2+ {[%emt 0:00:48]} 59. Kd3 {[%emt 0:00:11]} Ba5 {[%emt 0:01:08]} 60. Be3 {[%emt 0:00:18]} Rxg2 {[%emt 0:02:08]} 61. Bxc5 {[%emt 0:00:24]} Rd2+ {[%emt 0:00:29]} 62. Ke3 {[%emt 0:00:08]} Rc2 {[%emt 0:00:29]} 63. Ne7+ {[%emt 0:01:38]} Kg7 {[%emt 0:01:32]} 64. Nf5+ {[%emt 0:00:11]} Kh7 {[%emt 0:00:46]} 65. Be7 {[%emt 0:02:11]} Kg6 {[%emt 0:00:41]} 66. c5 {[%emt 0:00:43]} Bb4 {[%emt 0:01:10]} 67. c6 {[%emt 0:03:26]} Ba5 {[%emt 0:00:15]} 68. Bd6 {[%emt 0:00:42]} Bd8 {[%emt 0:00:31]} 69. c7 {[%emt 0:00:22]} Bxc7 {[%emt 0:00:13]} 70. Kd3 {[%emt 0:00:03]} Rf2 {[%emt 0:01:05]} 71. Bxc7 {[%emt 0:00:12]} Rxf3+ {[%emt 0:00:04]} 72. Ne3 {[%emt 0:00:32]} h5 {[%emt 0:00:59]} 73. gxh5+ {[%emt 0:00:43]} Kxh5 {[%emt 0:00:01]} 74. Ke2 {[%emt 0:00:20]} Rf4 {[%emt 0:01:03]} 75. Nd5 {[%emt 0:01:02]} Rxe4+ {[%emt 0:00:00]} 76. Kf3 {[%emt 0:00:04]} Rc4 {[%emt 0:01:00]} 77. Nxf6+ {[%emt 0:00:04]} Kg6 {[%emt 0:00:04]} 78. Bxe5 {[%emt 0:00:45]} Kf5 {[%emt 0:00:07]} 79. Bb2 {[%emt 0:00:49]} Rb4 {[%emt 0:00:17]} 80. Bc3 {[%emt 0:00:40]} Rb3 {[%emt 0:00:40]} 81. Ne4 {[%emt 0:00:21]} g4+ {[%emt 0:00:05]} 82. Ke3 {[%emt 0:00:04]} Rxc3+ {[%emt 0:00:06]} 83. Nxc3 {[%emt 0:00:04]} 1/2-1/2

[Event "80th ARM-ch 2020"]
[Site "Yerevan"]
[Date "2020.01.18"]
[Round "7.2"]
[White "Sargsyan, Shant"]
[Black "Pashikian, Arman"]
[Result "1/2-1/2"]
[ECO "D35"]
[WhiteElo "2601"]
[BlackElo "2605"]
[Annotator "ChessBase"]
[PlyCount "119"]
[EventDate "2020.01.12"]
[EventType "tourn"]
[EventCountry "ARM"]
[SourceTitle "playchess.com"]
[Source "ChessBase"]
[SourceQuality "1"]
[TimeControl "40/5400+30:1800+30"]

1. d4 {[%emt 0:01:11]} Nf6 {[%emt 0:00:00]} 2. c4 {[%emt 0:00:08]} e6 {[%emt 0:00:00]} 3. Nc3 {[%emt 0:00:20]} d5 {[%emt 0:01:40]} 4. cxd5 {[%emt 0:01:13]} exd5 {[%emt 0:00:11]} 5. Bg5 {[%emt 0:00:07]} c6 {[%emt 0:00:09]} 6. e3 {[%emt 0:00:43]} Be7 {[%emt 0:00:07]} 7. Qc2 {[%emt 0:02:34]} Nbd7 {[%emt 0:03:49]} 8. Nf3 {[%emt 0:01:53]} Nh5 {[%emt 0:02:11]} 9. Bxe7 {[%emt 0:03:47]} Qxe7 {[%emt 0:00:14]} 10. O-O-O {[%emt 0:00:56]} Nb6 {[%emt 0:00:54]} 11. h3 {[%emt 0:04:02]} g6 {[%emt 0:00:50]} 12. Bd3 {[%emt 0:02:05]} Be6 {[%emt 0:01:06]} 13. Kb1 {[%emt 0:03:16]} O-O-O {[%emt 0:02:28]} 14. Nd2 {[%emt 0:01:46]} Ng7 {[%emt 0:05:14]} 15. Ka1 {[%emt 0:05:50]} Bf5 {[%emt 0:05:31]} 16. Rb1 {[%emt 0:00:59]} Qg5 {[%emt 0:12:04]} 17. Rhg1 {[%emt 0:04:04]} Bxd3 {[%emt 0:00:08]} 18. Qxd3 {[%emt 0:00:10]} Qf5 {[%emt 0:00:10]} 19. Qe2 {[%emt 0:00:13]} Ne6 {[%emt 0:02:20]} 20. Rgc1 {[%emt 0:02:39]} Rhe8 {[%emt 0:04:41]} 21. Qf1 {[%emt 0:02:48]} Kb8 {[%emt 0:05:21]} 22. b4 {[%emt 0:02:40]} Rc8 {[%emt 0:00:55]} 23. a4 {[%emt 0:03:07]} a6 {[%emt 0:05:00]} 24. Rb2 {[%emt 0:04:51]} Rc7 {[%emt 0:03:36]} 25. Rcb1 {[%emt 0:06:10]} Ree7 {[%emt 0:01:19]} 26. Ra2 {[%emt 0:01:58]} Qf6 {[%emt 0:03:12]} 27. Nb3 {[%emt 0:02:24]} Nc4 {[%emt 0:08:02]} 28. b5 {[%emt 0:05:15]} axb5 {[%emt 0:00:35]} 29. axb5 {[%emt 0:01:12]} b6 {[%emt 0:00:03]} 30. bxc6 {[%emt 0:05:33]} Ra7 {[%emt 0:00:09]} 31. Nc1 {[%emt 0:15:55]} Nxd4 {[%emt 0:24:50]} 32. exd4 {[%emt 0:00:54]} Qxd4 {[%emt 0:00:54]} 33. Qd3 {[%emt 0:04:24]} Rxa2+ {[%emt 0:02:23]} 34. Kxa2 {[%emt 0:00:02]} Ra7+ {[%emt 0:01:16]} 35. Kb3 {[%emt 0:00:02]} Ra3+ {[%emt 0:03:24]} 36. Kc2 {[%emt 0:00:01]} Qxf2+ {[%emt 0:00:07]} 37. N1e2 {[%emt 0:06:56]} Ne3+ {[%emt 0:01:32]} 38. Kc1 {[%emt 0:01:04]} Nc4 {[%emt 0:01:05]} 39. Kc2 {[%emt 0:04:09]} Ne3+ {[%emt 0:01:17]} 40. Kc1 {[%emt 0:00:00]} Nc4 {[%emt 0:00:00]} 41. Rb4 {[%emt 0:09:20]} Qc5 {[%emt 0:08:50]} 42. Rxc4 {[%emt 0:10:20]} Qxc4 {[%emt 0:00:28]} 43. Qxc4 {[%emt 0:00:25]} dxc4 {[%emt 0:01:13]} 44. Nb5 {[%emt 0:02:13]} Re3 {[%emt 0:04:57]} 45. Ned4 {[%emt 0:01:05]} Re5 {[%emt 0:08:50]} 46. Kc2 {[%emt 0:00:40]} f5 {[%emt 0:01:50]} 47. g3 {[%emt 0:02:52]} g5 {[%emt 0:04:12]} 48. c7+ {[%emt 0:01:34]} Kc8 {[%emt 0:00:52]} 49. Nxf5 {[%emt 0:00:40]} Rxb5 {[%emt 0:00:47]} 50. Nd6+ {[%emt 0:00:01]} Kxc7 {[%emt 0:00:06]} 51. Nxb5+ {[%emt 0:00:03]} Kc6 {[%emt 0:00:06]} 52. Nc3 {[%emt 0:02:44]} h6 {[%emt 0:00:08]} 53. Ne4 {[%emt 0:02:18]} Kd5 {[%emt 0:01:39]} 54. Nf6+ {[%emt 0:00:18]} Ke6 {[%emt 0:00:43]} 55. Ng4 {[%emt 0:03:50]} h5 {[%emt 0:00:22]} 56. Ne3 {[%emt 0:00:45]} b5 {[%emt 0:01:33]} 57. g4 {[%emt 0:00:41]} hxg4 {[%emt 0:01:56]} 58. Nxg4 {[%emt 0:00:17]} Kf5 {[%emt 0:00:25]} 59. Kc3 {[%emt 0:00:23]} Kf4 {[%emt 0:00:10]} 60. Nf6 {[%emt 0:00:27]} 1/2-1/2